[Event "Titled Tuesday Blitz November 14 Early 2023"]
[White "Souleidis, Georgios"]
[Black "Aash20"]
[WhiteFideId "4206827"]
[WhiteElo "2612"]
[BlackElo "2485"]
[Result "1-0"]
[Round "9"]
[TimeControl "180+1"]
[Date "2023.11.14"]
[WhiteClock "0:00:20"]
[BlackClock "0:00:59"]
[Board "69"]

1. e4 {[%clk 0:03:00]}  c5 {[%clk 0:02:59]} 2. Be2 {[%clk 0:03:00]}  Nc6 {[%clk 0:02:57]} 3. d3 {[%clk 0:03:00]}  g6 {[%clk 0:02:57]} 4. f4 {[%clk 0:03:01]}  Bg7 {[%clk 0:02:57]} 5. Nf3 {[%clk 0:03:01]}  Nf6 {[%clk 0:02:58]} 6. O-O {[%clk 0:03:02]}  d6 {[%clk 0:02:58]} 7. c3 {[%clk 0:03:01]}  O-O {[%clk 0:02:58]} 8. Kh1 {[%clk 0:03:01]}  Bg4 {[%clk 0:02:58]} 9. Be3 {[%clk 0:03:01]}  Rb8 {[%clk 0:02:57]} 10. h3 {[%clk 0:02:57]}  Bxf3 {[%clk 0:02:56]} 11. Bxf3 {[%clk 0:02:58]}  Qc7 {[%clk 0:02:53]} 12. a4 {[%clk 0:02:57]}  a6 {[%clk 0:02:53]} 13. d4 {[%clk 0:02:51]}  cxd4 {[%clk 0:02:45]} 14. cxd4 {[%clk 0:02:52]}  d5 {[%clk 0:02:37]} 15. e5 {[%clk 0:02:49]}  Ne4 {[%clk 0:02:36]} 16. Bxe4 {[%clk 0:02:32]}  dxe4 {[%clk 0:02:37]} 17. Nc3 {[%clk 0:02:33]}  Rbd8 {[%clk 0:02:24]} 18. Nxe4 {[%clk 0:02:29]}  e6 {[%clk 0:02:17]} 19. Rc1 {[%clk 0:02:18]}  Qa5 {[%clk 0:02:15]} 20. Nd6 {[%clk 0:02:06]}  Rxd6 {[%clk 0:02:13]} 21. exd6 {[%clk 0:02:06]}  Qd5 {[%clk 0:02:14]} 22. Qc2 {[%clk 0:01:53]}  Qxd6 {[%clk 0:02:08]} 23. Qc5 {[%clk 0:01:48]}  Qxc5 {[%clk 0:01:59]} 24. dxc5 {[%clk 0:01:49]}  Rd8 {[%clk 0:01:53]} 25. Rfd1 {[%clk 0:01:49]}  Rd5 {[%clk 0:01:51]} 26. b3 {[%clk 0:01:36]}  Kf8 {[%clk 0:01:46]} 27. Kg1 {[%clk 0:01:29]}  Ke7 {[%clk 0:01:44]} 28. Kf2 {[%clk 0:01:27]}  h5 {[%clk 0:01:43]} 29. Kf3 {[%clk 0:01:21]}  Bd4 {[%clk 0:01:35]} 30. Kf2 {[%clk 0:01:00]}  f6 {[%clk 0:01:28]} 31. Bxd4 {[%clk 0:00:56]}  Nxd4 {[%clk 0:01:27]} 32. b4 {[%clk 0:00:55]}  e5 {[%clk 0:01:24]} 33. fxe5 {[%clk 0:00:55]}  fxe5 {[%clk 0:01:24]} 34. b5 {[%clk 0:00:53]}  axb5 {[%clk 0:01:24]} 35. axb5 {[%clk 0:00:54]}  Kd7 {[%clk 0:01:23]} 36. Rc3 {[%clk 0:00:41]}  Ke6 {[%clk 0:01:16]} 37. c6 {[%clk 0:00:31]}  bxc6 {[%clk 0:01:08]} 38. bxc6 {[%clk 0:00:30]}  Rd8 {[%clk 0:01:09]} 39. c7 {[%clk 0:00:29]}  Rc8 {[%clk 0:01:09]} 40. Ke3 {[%clk 0:00:20]}  Kd6 {[%clk 0:01:07]} 41. Rxd4+ {[%clk 0:00:19]}  exd4+ {[%clk 0:01:07]} 42. Kxd4 {[%clk 0:00:20]}  g5 {[%clk 0:01:02]} 43. Rc2 {[%clk 0:00:20]}  g4 {[%clk 0:01:02]} 44. h4 {[%clk 0:00:20]}  Kd7 {[%clk 0:01:00]} 45. Kd5 {[%clk 0:00:20]}  g3 {[%clk 0:01:01]} 46. Rc3 {[%clk 0:00:20]}  Rxc7 {[%clk 0:00:55]} 47. Rxc7+ {[%clk 0:00:21]}  Kxc7 {[%clk 0:00:56]} 48. Ke5 {[%clk 0:00:21]}  Kc6 {[%clk 0:00:57]} 49. Kf5 {[%clk 0:00:21]}  Kd5 {[%clk 0:00:57]} 50. Kg5 {[%clk 0:00:15]}  Kd4 {[%clk 0:00:58]} 51. Kxh5 {[%clk 0:00:16]}  Ke3 {[%clk 0:00:58]} 52. Kg4 {[%clk 0:00:17]}  Kf2 {[%clk 0:00:59]} 53. Kh3 {[%clk 0:00:17]}  Ke3 {[%clk 0:00:58]} 54. h5 {[%clk 0:00:18]}  Kf4 {[%clk 0:00:59]} 55. h6 {[%clk 0:00:19]}  Kg5 {[%clk 0:00:59]} 56. h7 {[%clk 0:00:20]} 1-0


[Site "https://www.chess.com"]

[Event "Titled Tuesday Blitz November 14 Early 2023"]
[White "Vlassov, Nikolai"]
[Black "Makaraci, Tunahan"]
[WhiteFideId "4103360"]
[BlackFideId "6356559"]
[WhiteElo "2608"]
[BlackElo "2484"]
[Result "1-0"]
[Round "9"]
[TimeControl "180+1"]
[Date "2023.11.14"]
[WhiteClock "0:00:14"]
[BlackClock "0:00:00"]
[Board "70"]

1. e4 {[%clk 0:03:00]}  c5 {[%clk 0:02:54]} 2. c3 {[%clk 0:03:00]}  d5 {[%clk 0:02:44]} 3. exd5 {[%clk 0:03:00]}  Qxd5 {[%clk 0:02:44]} 4. d4 {[%clk 0:03:01]}  Nc6 {[%clk 0:02:44]} 5. Nf3 {[%clk 0:03:01]}  Bf5 {[%clk 0:02:44]} 6. Be3 {[%clk 0:02:50]}  cxd4 {[%clk 0:02:42]} 7. Nxd4 {[%clk 0:02:48]}  Nf6 {[%clk 0:02:39]} 8. Nxf5 {[%clk 0:02:34]}  Qxf5 {[%clk 0:02:38]} 9. Be2 {[%clk 0:02:28]}  e6 {[%clk 0:02:34]} 10. Qb3 {[%clk 0:02:21]}  O-O-O {[%clk 0:02:22]} 11. O-O {[%clk 0:02:20]}  Bc5 {[%clk 0:02:19]} 12. Bxc5 {[%clk 0:02:01]}  Qxc5 {[%clk 0:02:19]} 13. Na3 {[%clk 0:01:58]}  Rd2 {[%clk 0:02:17]} 14. Bf3 {[%clk 0:01:53]}  Na5 {[%clk 0:01:45]} 15. Qb4 {[%clk 0:01:44]}  Qxb4 {[%clk 0:01:29]} 16. cxb4 {[%clk 0:01:44]}  Nc6 {[%clk 0:01:30]} 17. Rfc1 {[%clk 0:01:36]}  Kb8 {[%clk 0:01:20]} 18. Bxc6 {[%clk 0:01:33]}  bxc6 {[%clk 0:01:20]} 19. Nc4 {[%clk 0:01:33]}  Re2 {[%clk 0:00:40]} 20. Kf1 {[%clk 0:01:28]}  Re4 {[%clk 0:00:40]} 21. f3 {[%clk 0:01:25]}  Rh4 {[%clk 0:00:36]} 22. h3 {[%clk 0:01:17]}  Nd5 {[%clk 0:00:33]} 23. Ne5 {[%clk 0:01:09]}  Nxb4 {[%clk 0:00:25]} 24. Nxf7 {[%clk 0:01:09]}  Rc8 {[%clk 0:00:20]} 25. Ng5 {[%clk 0:01:03]}  e5 {[%clk 0:00:09]} 26. Ne4 {[%clk 0:00:53]}  Nd5 {[%clk 0:00:07]} 27. Rc5 {[%clk 0:00:47]}  Rf8 {[%clk 0:00:07]} 28. Kg1 {[%clk 0:00:42]}  Ne7 {[%clk 0:00:06]} 29. Rxe5 {[%clk 0:00:40]}  Nd5 {[%clk 0:00:03]} 30. Rc1 {[%clk 0:00:38]}  Rh6 {[%clk 0:00:03]} 31. Nc5 {[%clk 0:00:32]}  Rf7 {[%clk 0:00:03]} 32. Re8+ {[%clk 0:00:27]}  Kc7 {[%clk 0:00:03]} 33. Ra8 {[%clk 0:00:22]}  Kb6 {[%clk 0:00:02]} 34. Ne4 {[%clk 0:00:17]}  Nf4 {[%clk 0:00:01]} 35. Kh2 {[%clk 0:00:15]}  Nd3 {[%clk 0:00:00]} 36. Rc3 {[%clk 0:00:14]} 1-0


[Site "https://www.chess.com"]

[Event "Titled Tuesday Blitz November 14 Early 2023"]
[White "Jamal-Jamal-Jamal"]
[Black "borocotoajua"]
[WhiteElo "2448"]
[BlackElo "2597"]
[Result "0-1"]
[Round "9"]
[TimeControl "180+1"]
[Date "2023.11.14"]
[WhiteClock "0:00:10"]
[BlackClock "0:00:14"]
[Board "71"]

1. e4 {[%clk 0:03:00]}  c6 {[%clk 0:02:53]} 2. d4 {[%clk 0:02:54]}  d5 {[%clk 0:02:52]} 3. e5 {[%clk 0:02:55]}  c5 {[%clk 0:02:52]} 4. Nf3 {[%clk 0:02:55]}  Nc6 {[%clk 0:02:51]} 5. dxc5 {[%clk 0:02:54]}  Bg4 {[%clk 0:02:48]} 6. c3 {[%clk 0:02:54]}  e6 {[%clk 0:02:42]} 7. Be3 {[%clk 0:02:53]}  Nh6 {[%clk 0:02:37]} 8. Bb5 {[%clk 0:02:48]}  Qa5 {[%clk 0:02:09]} 9. Bxc6+ {[%clk 0:02:46]}  bxc6 {[%clk 0:02:09]} 10. b4 {[%clk 0:02:45]}  Qc7 {[%clk 0:02:08]} 11. Bxh6 {[%clk 0:02:45]}  gxh6 {[%clk 0:01:58]} 12. Qd4 {[%clk 0:02:42]}  Rg8 {[%clk 0:01:55]} 13. Nbd2 {[%clk 0:02:39]}  Bf5 {[%clk 0:01:43]} 14. g3 {[%clk 0:02:27]}  a5 {[%clk 0:01:20]} 15. h3 {[%clk 0:02:17]}  axb4 {[%clk 0:01:13]} 16. cxb4 {[%clk 0:02:17]}  h5 {[%clk 0:00:55]} 17. Qe3 {[%clk 0:01:55]}  Ra4 {[%clk 0:00:51]} 18. a3 {[%clk 0:01:52]}  Bg7 {[%clk 0:00:32]} 19. Nf1 {[%clk 0:01:44]}  Be4 {[%clk 0:00:29]} 20. N1d2 {[%clk 0:01:31]}  Bxe5 {[%clk 0:00:27]} 21. Nxe5 {[%clk 0:01:18]}  Qxe5 {[%clk 0:00:25]} 22. O-O {[%clk 0:01:16]}  h4 {[%clk 0:00:22]} 23. Nxe4 {[%clk 0:01:10]}  dxe4 {[%clk 0:00:23]} 24. g4 {[%clk 0:01:08]}  h5 {[%clk 0:00:22]} 25. f4 {[%clk 0:01:01]}  Qb2 {[%clk 0:00:18]} 26. g5 {[%clk 0:00:58]}  Ra8 {[%clk 0:00:13]} 27. Qxe4 {[%clk 0:00:55]}  Rd8 {[%clk 0:00:12]} 28. Rad1 {[%clk 0:00:51]}  Rd5 {[%clk 0:00:11]} 29. Rxd5 {[%clk 0:00:42]}  cxd5 {[%clk 0:00:12]} 30. Qd3 {[%clk 0:00:32]}  f6 {[%clk 0:00:12]} 31. Qe3 {[%clk 0:00:29]}  Kf7 {[%clk 0:00:11]} 32. c6 {[%clk 0:00:29]}  Rc8 {[%clk 0:00:09]} 33. Qf3 {[%clk 0:00:23]}  Rxc6 {[%clk 0:00:09]} 34. Qxh5+ {[%clk 0:00:23]}  Ke7 {[%clk 0:00:10]} 35. gxf6+ {[%clk 0:00:23]}  Qxf6 {[%clk 0:00:10]} 36. Qh7+ {[%clk 0:00:19]}  Kd6 {[%clk 0:00:09]} 37. Qd3 {[%clk 0:00:17]}  Rc3 {[%clk 0:00:09]} 38. Qa6+ {[%clk 0:00:14]}  Ke7 {[%clk 0:00:09]} 39. Qa7+ {[%clk 0:00:14]}  Kf8 {[%clk 0:00:08]} 40. Qb8+ {[%clk 0:00:13]}  Kf7 {[%clk 0:00:07]} 41. Qb7+ {[%clk 0:00:11]}  Kf8 {[%clk 0:00:07]} 42. Qb8+ {[%clk 0:00:11]}  Kf7 {[%clk 0:00:07]} 43. Qb7+ {[%clk 0:00:11]}  Kg8 {[%clk 0:00:08]} 44. Qb8+ {[%clk 0:00:10]}  Kh7 {[%clk 0:00:08]} 45. Qa7+ {[%clk 0:00:07]}  Kh6 {[%clk 0:00:07]} 46. Qf2 {[%clk 0:00:07]}  Rxh3 {[%clk 0:00:06]} 47. Re1 {[%clk 0:00:06]}  Qf5 {[%clk 0:00:05]} 48. Kf1 {[%clk 0:00:03]}  Qd3+ {[%clk 0:00:05]} 49. Re2 {[%clk 0:00:03]}  Rf3 {[%clk 0:00:04]} 50. f5 {[%clk 0:00:03]}  Rxf2+ {[%clk 0:00:05]} 51. Kxf2 {[%clk 0:00:02]}  Qxf5+ {[%clk 0:00:04]} 52. Ke1 {[%clk 0:00:02]}  Qh5 {[%clk 0:00:05]} 53. Kd2 {[%clk 0:00:03]}  Qg5+ {[%clk 0:00:06]} 54. Re3 {[%clk 0:00:03]}  Qg6 {[%clk 0:00:06]} 55. Rd3 {[%clk 0:00:04]}  Kh5 {[%clk 0:00:07]} 56. b5 {[%clk 0:00:04]}  Qg5+ {[%clk 0:00:07]} 57. Kc2 {[%clk 0:00:04]}  h3 {[%clk 0:00:08]} 58. Rxh3+ {[%clk 0:00:04]}  Kg4 {[%clk 0:00:07]} 59. Rd3 {[%clk 0:00:05]}  Qf5 {[%clk 0:00:07]} 60. b6 {[%clk 0:00:05]}  Qf2+ {[%clk 0:00:08]} 61. Kc1 {[%clk 0:00:03]}  Qxb6 {[%clk 0:00:09]} 62. Rd2 {[%clk 0:00:03]}  Kf4 {[%clk 0:00:09]} 63. Rb2 {[%clk 0:00:03]}  Qg1+ {[%clk 0:00:09]} 64. Kc2 {[%clk 0:00:03]}  Qf2+ {[%clk 0:00:09]} 65. Kb3 {[%clk 0:00:04]}  Qc5 {[%clk 0:00:09]} 66. a4 {[%clk 0:00:04]}  Qc4+ {[%clk 0:00:09]} 67. Ka3 {[%clk 0:00:05]}  Qc3+ {[%clk 0:00:10]} 68. Rb3 {[%clk 0:00:05]}  Qc5+ {[%clk 0:00:10]} 69. Rb4+ {[%clk 0:00:05]}  d4 {[%clk 0:00:10]} 70. Kb3 {[%clk 0:00:06]}  Ke3 {[%clk 0:00:10]} 71. Rb5 {[%clk 0:00:06]}  Qc3+ {[%clk 0:00:10]} 72. Ka2 {[%clk 0:00:07]}  Qc2+ {[%clk 0:00:10]} 73. Ka3 {[%clk 0:00:06]}  d3 {[%clk 0:00:10]} 74. a5 {[%clk 0:00:07]}  Qc3+ {[%clk 0:00:10]} 75. Rb3 {[%clk 0:00:07]}  Qc5+ {[%clk 0:00:10]} 76. Ka4 {[%clk 0:00:07]}  Qc4+ {[%clk 0:00:10]} 77. Ka3 {[%clk 0:00:06]}  Qxb3+ {[%clk 0:00:09]} 78. Kxb3 {[%clk 0:00:07]}  d2 {[%clk 0:00:10]} 79. a6 {[%clk 0:00:07]}  d1=Q+ {[%clk 0:00:10]} 80. Kb4 {[%clk 0:00:08]}  Qd7 {[%clk 0:00:11]} 81. Kc5 {[%clk 0:00:07]}  Qa7+ {[%clk 0:00:12]} 82. Kb5 {[%clk 0:00:08]}  e5 {[%clk 0:00:13]} 83. Ka5 {[%clk 0:00:08]}  e4 {[%clk 0:00:13]} 84. Kb5 {[%clk 0:00:09]}  Kf3 {[%clk 0:00:14]} 85. Kb4 {[%clk 0:00:09]}  e3 {[%clk 0:00:15]} 86. Kc4 {[%clk 0:00:10]}  e2 {[%clk 0:00:16]} 87. Kd5 {[%clk 0:00:11]}  e1=Q {[%clk 0:00:16]} 88. Kd6 {[%clk 0:00:11]}  Qxa6+ {[%clk 0:00:14]} 89. Kc7 {[%clk 0:00:11]}  Qc3+ {[%clk 0:00:14]} 90. Kb8 {[%clk 0:00:10]}  Qb4+ {[%clk 0:00:13]} 91. Kc7 {[%clk 0:00:10]}  Qbb7+ {[%clk 0:00:13]} 92. Kd8 {[%clk 0:00:10]}  Qaa8# {[%clk 0:00:14]} 0-1


[Site "https://www.chess.com"]

[Event "Titled Tuesday Blitz November 14 Early 2023"]
[White "Suduvasachmatai"]
[Black "Tasev, Dejan"]
[BlackFideId "936618"]
[WhiteElo "2266"]
[BlackElo "2585"]
[Result "0-1"]
[Round "9"]
[TimeControl "180+1"]
[Date "2023.11.14"]
[WhiteClock "0:00:13"]
[BlackClock "0:00:58"]
[Board "73"]

1. e4 {[%clk 0:03:00]}  c6 {[%clk 0:02:59]} 2. Nf3 {[%clk 0:03:00]}  d5 {[%clk 0:03:00]} 3. Nc3 {[%clk 0:03:00]}  Bg4 {[%clk 0:03:00]} 4. h3 {[%clk 0:03:00]}  Bxf3 {[%clk 0:03:00]} 5. Qxf3 {[%clk 0:03:00]}  e6 {[%clk 0:03:00]} 6. exd5 {[%clk 0:02:58]}  exd5 {[%clk 0:02:59]} 7. d4 {[%clk 0:02:59]}  Bd6 {[%clk 0:02:57]} 8. Bd3 {[%clk 0:02:59]}  Ne7 {[%clk 0:02:54]} 9. O-O {[%clk 0:02:59]}  O-O {[%clk 0:02:52]} 10. Bg5 {[%clk 0:02:55]}  h6 {[%clk 0:02:33]} 11. Bxe7 {[%clk 0:02:23]}  Qxe7 {[%clk 0:02:24]} 12. Qf5 {[%clk 0:02:23]}  g6 {[%clk 0:02:21]} 13. Qf3 {[%clk 0:02:21]}  Kg7 {[%clk 0:02:15]} 14. Ne2 {[%clk 0:02:20]}  Nd7 {[%clk 0:02:09]} 15. Ng3 {[%clk 0:02:20]}  Nf6 {[%clk 0:01:49]} 16. Rfe1 {[%clk 0:02:07]}  Qd7 {[%clk 0:01:44]} 17. c3 {[%clk 0:01:29]}  Rae8 {[%clk 0:01:43]} 18. Re3 {[%clk 0:01:23]}  Rxe3 {[%clk 0:01:28]} 19. fxe3 {[%clk 0:01:21]}  Nh7 {[%clk 0:01:25]} 20. Rf1 {[%clk 0:01:20]}  Qe7 {[%clk 0:01:11]} 21. Re1 {[%clk 0:00:41]}  Qh4 {[%clk 0:01:02]} 22. Kf2 {[%clk 0:00:29]}  f5 {[%clk 0:00:57]} 23. c4 {[%clk 0:00:24]}  Ng5 {[%clk 0:00:56]} 24. Qe2 {[%clk 0:00:17]}  Bxg3+ {[%clk 0:00:56]} 25. Kf1 {[%clk 0:00:17]}  Bxe1 {[%clk 0:00:56]} 26. Qxe1 {[%clk 0:00:17]}  Qxe1+ {[%clk 0:00:56]} 27. Kxe1 {[%clk 0:00:18]}  dxc4 {[%clk 0:00:57]} 28. Bxc4 {[%clk 0:00:18]}  Re8 {[%clk 0:00:57]} 29. Kd2 {[%clk 0:00:18]}  Ne4+ {[%clk 0:00:58]} 30. Ke2 {[%clk 0:00:13]}  Kf6 {[%clk 0:00:58]} 0-1


[Site "https://www.chess.com"]

[Event "Titled Tuesday Blitz November 14 Early 2023"]
[White "EvgenyBurmakin"]
[Black "Alen_Yeremyann"]
[WhiteElo "2382"]
[BlackElo "2765"]
[Result "0-1"]
[Round "9"]
[TimeControl "180+1"]
[Date "2023.11.14"]
[WhiteClock "0:00:00"]
[BlackClock "0:01:33"]
[Board "74"]

1. e4 {[%clk 0:03:00]}  Nf6 {[%clk 0:02:57]} 2. e5 {[%clk 0:03:00]}  Nd5 {[%clk 0:02:57]} 3. d4 {[%clk 0:03:00]}  d6 {[%clk 0:02:58]} 4. c4 {[%clk 0:03:00]}  Nb6 {[%clk 0:02:58]} 5. f4 {[%clk 0:03:00]}  dxe5 {[%clk 0:02:58]} 6. fxe5 {[%clk 0:03:01]}  Bf5 {[%clk 0:02:59]} 7. Nc3 {[%clk 0:03:01]}  e6 {[%clk 0:02:59]} 8. Be3 {[%clk 0:03:00]}  Nc6 {[%clk 0:03:00]} 9. Nf3 {[%clk 0:02:58]}  Bg4 {[%clk 0:03:00]} 10. Be2 {[%clk 0:02:48]}  Bxf3 {[%clk 0:03:00]} 11. gxf3 {[%clk 0:02:48]}  Qh4+ {[%clk 0:03:01]} 12. Bf2 {[%clk 0:02:45]}  Qf4 {[%clk 0:03:01]} 13. c5 {[%clk 0:02:45]}  Nc8 {[%clk 0:03:01]} 14. Nb5 {[%clk 0:02:28]}  Rb8 {[%clk 0:02:58]} 15. Nxc7+ {[%clk 0:02:25]}  Kd7 {[%clk 0:02:59]} 16. Nb5 {[%clk 0:02:24]}  N8e7 {[%clk 0:02:59]} 17. Qd2 {[%clk 0:02:16]}  Qxd2+ {[%clk 0:02:57]} 18. Kxd2 {[%clk 0:02:17]}  a6 {[%clk 0:02:57]} 19. Nd6 {[%clk 0:02:17]}  f5 {[%clk 0:02:56]} 20. Bc4 {[%clk 0:02:05]}  Ng6 {[%clk 0:02:51]} 21. Kc3 {[%clk 0:01:56]}  b5 {[%clk 0:02:40]} 22. Bb3 {[%clk 0:01:53]}  Na5 {[%clk 0:02:32]} 23. Bc2 {[%clk 0:01:47]}  Nf4 {[%clk 0:02:31]} 24. Kd2 {[%clk 0:01:27]}  Bxd6 {[%clk 0:02:30]} 25. exd6 {[%clk 0:01:24]}  Nc4+ {[%clk 0:02:23]} 26. Kc1 {[%clk 0:01:11]}  g6 {[%clk 0:02:20]} 27. Re1 {[%clk 0:01:06]}  Rhe8 {[%clk 0:02:19]} 28. b3 {[%clk 0:01:05]}  Na5 {[%clk 0:02:19]} 29. Kb2 {[%clk 0:01:04]}  Nc6 {[%clk 0:02:19]} 30. Rad1 {[%clk 0:01:03]}  Nd5 {[%clk 0:02:16]} 31. a3 {[%clk 0:00:56]}  Ra8 {[%clk 0:02:12]} 32. h4 {[%clk 0:00:54]}  Rg8 {[%clk 0:02:11]} 33. Rg1 {[%clk 0:00:52]}  Nf4 {[%clk 0:02:04]} 34. Rge1 {[%clk 0:00:43]}  Ng2 {[%clk 0:02:03]} 35. Rg1 {[%clk 0:00:37]}  Nf4 {[%clk 0:02:03]} 36. Rd2 {[%clk 0:00:35]}  Rg7 {[%clk 0:01:59]} 37. Bg3 {[%clk 0:00:33]}  Nd5 {[%clk 0:01:58]} 38. Be5 {[%clk 0:00:31]}  Rgg8 {[%clk 0:01:58]} 39. f4 {[%clk 0:00:21]}  Rac8 {[%clk 0:01:58]} 40. b4 {[%clk 0:00:19]}  a5 {[%clk 0:01:58]} 41. bxa5 {[%clk 0:00:15]}  Nxa5 {[%clk 0:01:59]} 42. Bd3 {[%clk 0:00:14]}  Nc4+ {[%clk 0:01:53]} 43. Bxc4 {[%clk 0:00:13]}  bxc4 {[%clk 0:01:54]} 44. Rc2 {[%clk 0:00:13]}  Rb8+ {[%clk 0:01:54]} 45. Ka2 {[%clk 0:00:13]}  c3 {[%clk 0:01:50]} 46. Rb1 {[%clk 0:00:11]}  Rxb1 {[%clk 0:01:45]} 47. Kxb1 {[%clk 0:00:12]}  Kc6 {[%clk 0:01:45]} 48. Ka2 {[%clk 0:00:11]}  h6 {[%clk 0:01:43]} 49. Rc1 {[%clk 0:00:10]}  Rb8 {[%clk 0:01:38]} 50. Rb1 {[%clk 0:00:09]}  c2 {[%clk 0:01:38]} 51. Rxb8 {[%clk 0:00:05]}  c1=Q {[%clk 0:01:36]} 52. Rb2 {[%clk 0:00:02]}  Qc4+ {[%clk 0:01:33]} 53. Kb1 {[%clk 0:00:02]}  Nc3+ {[%clk 0:01:33]} 54. Ka1 {[%clk 0:00:00]}  Qf1+ {[%clk 0:01:33]} 0-1


[Site "https://www.chess.com"]

[Event "Titled Tuesday Blitz November 14 Early 2023"]
[White "Zoete, Roelant"]
[Black "Zavgorodniy, Sergiy"]
[WhiteFideId "40103269"]
[BlackFideId "14110148"]
[WhiteElo "2515"]
[BlackElo "2691"]
[Result "0-1"]
[Round "9"]
[TimeControl "180+1"]
[Date "2023.11.14"]
[WhiteClock "0:00:24"]
[BlackClock "0:00:27"]
[Board "76"]

1. e4 {[%clk 0:02:55]}  c6 {[%clk 0:02:44]} 2. Nf3 {[%clk 0:02:54]}  d5 {[%clk 0:02:45]} 3. d3 {[%clk 0:02:54]}  Qc7 {[%clk 0:02:44]} 4. Nc3 {[%clk 0:02:52]}  Nf6 {[%clk 0:02:40]} 5. g3 {[%clk 0:02:41]}  e5 {[%clk 0:02:36]} 6. Bg2 {[%clk 0:02:39]}  d4 {[%clk 0:02:35]} 7. Ne2 {[%clk 0:02:37]}  Bd6 {[%clk 0:02:32]} 8. O-O {[%clk 0:02:34]}  c5 {[%clk 0:02:31]} 9. Ne1 {[%clk 0:02:21]}  h5 {[%clk 0:02:29]} 10. f4 {[%clk 0:02:15]}  h4 {[%clk 0:02:28]} 11. fxe5 {[%clk 0:02:14]}  Bxe5 {[%clk 0:02:27]} 12. Nf4 {[%clk 0:02:07]}  hxg3 {[%clk 0:02:26]} 13. hxg3 {[%clk 0:02:07]}  Bg4 {[%clk 0:02:21]} 14. Nf3 {[%clk 0:01:55]}  Nbd7 {[%clk 0:02:19]} 15. Qe1 {[%clk 0:01:52]}  O-O-O {[%clk 0:02:17]} 16. Nxe5 {[%clk 0:01:45]}  Nxe5 {[%clk 0:02:18]} 17. b4 {[%clk 0:01:41]}  c4 {[%clk 0:02:14]} 18. a4 {[%clk 0:01:34]}  Rh7 {[%clk 0:02:10]} 19. b5 {[%clk 0:01:28]}  Rdh8 {[%clk 0:02:08]} 20. a5 {[%clk 0:01:26]}  cxd3 {[%clk 0:01:39]} 21. cxd3 {[%clk 0:01:22]}  Qc2 {[%clk 0:01:37]} 22. Bd2 {[%clk 0:01:15]}  Nxd3 {[%clk 0:01:36]} 23. Nxd3 {[%clk 0:01:11]}  Qxd3 {[%clk 0:01:37]} 24. e5 {[%clk 0:01:08]}  Nd7 {[%clk 0:01:11]} 25. Rxf7 {[%clk 0:01:00]}  Rh2 {[%clk 0:01:02]} 26. e6 {[%clk 0:00:43]}  Nc5 {[%clk 0:00:51]} 27. Rc1 {[%clk 0:00:32]}  b6 {[%clk 0:00:46]} 28. axb6 {[%clk 0:00:32]}  axb6 {[%clk 0:00:47]} 29. Bf4 {[%clk 0:00:29]}  Rxg2+ {[%clk 0:00:27]} 30. Kxg2 {[%clk 0:00:28]}  Qf3+ {[%clk 0:00:27]} 31. Kg1 {[%clk 0:00:24]}  Rh1# {[%clk 0:00:27]} 0-1


[Site "https://www.chess.com"]

[Event "Titled Tuesday Blitz November 14 Early 2023"]
[White "Nagare Kaivalya Sandip"]
[Black "Kanyamarala, Tarun"]
[WhiteFideId "25957929"]
[BlackFideId "45004714"]
[WhiteElo "2656"]
[BlackElo "2502"]
[Result "0-1"]
[Round "9"]
[TimeControl "180+1"]
[Date "2023.11.14"]
[WhiteClock "0:00:20"]
[BlackClock "0:00:13"]
[Board "81"]

1. e4 {[%clk 0:03:00]}  c5 {[%clk 0:02:56]} 2. Nf3 {[%clk 0:03:00]}  e6 {[%clk 0:02:56]} 3. d4 {[%clk 0:03:00]}  cxd4 {[%clk 0:02:57]} 4. Nxd4 {[%clk 0:03:01]}  a6 {[%clk 0:02:57]} 5. Bd3 {[%clk 0:03:00]}  Bc5 {[%clk 0:02:56]} 6. Nb3 {[%clk 0:03:00]}  Ba7 {[%clk 0:02:55]} 7. O-O {[%clk 0:02:59]}  Ne7 {[%clk 0:02:53]} 8. c4 {[%clk 0:02:55]}  O-O {[%clk 0:02:49]} 9. Nc3 {[%clk 0:02:55]}  Nbc6 {[%clk 0:02:50]} 10. Bf4 {[%clk 0:02:52]}  d6 {[%clk 0:02:45]} 11. h3 {[%clk 0:02:51]}  e5 {[%clk 0:02:35]} 12. Bg5 {[%clk 0:02:47]}  h6 {[%clk 0:02:29]} 13. Bh4 {[%clk 0:02:47]}  g5 {[%clk 0:02:28]} 14. Bg3 {[%clk 0:02:46]}  f5 {[%clk 0:02:26]} 15. exf5 {[%clk 0:02:44]}  Nxf5 {[%clk 0:02:27]} 16. Kh2 {[%clk 0:02:40]}  Ncd4 {[%clk 0:02:21]} 17. Nxd4 {[%clk 0:02:36]}  Bxd4 {[%clk 0:02:22]} 18. Rb1 {[%clk 0:02:28]}  Be6 {[%clk 0:02:06]} 19. Ne4 {[%clk 0:02:19]}  b5 {[%clk 0:01:55]} 20. b3 {[%clk 0:02:05]}  Rc8 {[%clk 0:01:54]} 21. Qe2 {[%clk 0:02:02]}  Rf7 {[%clk 0:01:43]} 22. cxb5 {[%clk 0:01:59]}  d5 {[%clk 0:01:43]} 23. Nd2 {[%clk 0:01:55]}  e4 {[%clk 0:01:42]} 24. Nxe4 {[%clk 0:01:54]}  dxe4 {[%clk 0:01:42]} 25. Bxe4 {[%clk 0:01:52]}  axb5 {[%clk 0:01:38]} 26. Qxb5 {[%clk 0:01:53]}  Rc5 {[%clk 0:01:25]} 27. Qa6 {[%clk 0:01:49]}  Qf6 {[%clk 0:01:11]} 28. b4 {[%clk 0:01:41]}  Rc3 {[%clk 0:01:04]} 29. b5 {[%clk 0:01:24]}  Be5 {[%clk 0:01:01]} 30. b6 {[%clk 0:01:17]}  Nxg3 {[%clk 0:00:30]} 31. fxg3 {[%clk 0:01:15]}  Bxg3+ {[%clk 0:00:31]} 32. Kh1 {[%clk 0:01:07]}  Qe5 {[%clk 0:00:13]} 33. b7 {[%clk 0:00:36]}  Qxe4 {[%clk 0:00:13]} 34. b8=Q+ {[%clk 0:00:34]}  Bxb8 {[%clk 0:00:12]} 35. Rxb8+ {[%clk 0:00:34]}  Kg7 {[%clk 0:00:12]} 36. Rbb1 {[%clk 0:00:22]}  Rxh3+ {[%clk 0:00:12]} 37. Kg1 {[%clk 0:00:20]}  Qe3+ {[%clk 0:00:13]} 0-1


[Site "https://www.chess.com"]